bitfinex/quotes_BTCUSD_20241020
["timestamp","ask_amount","ask_price","bid_price","bid_amount"]
[1729423162261,0.00251032,68389.0,68388.0,0.36652149]
[1729423162473,0.00251032,68389.0,68388.0,0.36817549]
[1729423164704,0.000827,68389.0,68388.0,0.36817549]
[1729423164915,0.03,68393.0,68392.0,0.04188135]
[1729423165122,0.03,68393.0,68392.0,0.3814405]
[1729423165335,0.03388967,68393.0,68392.0,0.42712149]
[1729423165760,0.03,68393.0,68392.0,0.42712149]
[1729423167702,0.00214721,68393.0,68392.0,0.42712149]
[1729423168087,0.00214721,68393.0,68392.0,0.44888668]
[1729423170772,0.21990585,68399.0,68396.0,0.012]
[1729423170987,0.21990585,68399.0,68396.0,0.18395915]
[1729423171239,0.21990585,68399.0,68396.0,0.32964014]
[1729423171639,0.000827,68399.0,68396.0,0.32964014]
[1729423171846,0.000827,68399.0,68396.0,0.42024014]
[1729423179566,0.000827,68399.0,68396.0,0.42712149]
[1729423179784,7.299e-05,68397.0,68396.0,0.42712149]
[1729423180403,7.299e-05,68399.0,68398.0,0.01888135]
[1729423180643,7.299e-05,68399.0,68398.0,0.33652149]
[1729423182750,0.0796,68408.0,68404.0,0.012]
[1729423182949,0.0796,68408.0,68404.0,0.28395915]
[1729423183160,0.00485737,68405.0,68404.0,0.32964014]
[1729423183356,0.00485737,68405.0,68404.0,0.32764014]
[1729423183557,0.000827,68405.0,68404.0,0.32764014]
[1729423183759,0.000827,68405.0,68404.0,0.32964014]
[1729423186407,0.000527,68405.0,68404.0,0.32964014]
[1729423186803,0.000527,68405.0,68404.0,0.38810114]
[1729423188043,0.000527,68405.0,68404.0,0.53566479]
[1729423188250,0.079127,68408.0,68407.0,0.012]
[1729423188455,0.079127,68408.0,68407.0,0.26095915]
[1729423188653,0.079127,68408.0,68407.0,0.30664014]
[1729423193426,0.079127,68408.0,68407.0,0.30464014]
[1729423193886,0.079127,68408.0,68407.0,0.30664014]
[1729423195960,0.079027,68408.0,68407.0,0.30664014]
[1729423196396,0.079027,68408.0,68407.0,0.30464014]
[1729423196605,0.079027,68408.0,68407.0,0.30664014]
[1729423198925,0.079027,68408.0,68407.0,0.30464014]
[1729423202656,0.079854,68408.0,68407.0,0.30464014]
[1729423202858,0.079854,68408.0,68407.0,0.30664014]
[1729423203062,0.079854,68408.0,68407.0,0.30464014]
[1729423203278,0.079854,68408.0,68407.0,0.30664014]
[1729423207672,0.079854,68408.0,68407.0,0.45413845]
[1729423209296,0.079854,68408.0,68407.0,0.45424388]
[1729423209509,0.079854,68408.0,68407.0,0.30464014]
[1729423209721,0.174354,68408.0,68407.0,0.30464014]
[1729423209933,0.17844187,68408.0,68407.0,0.30464014]
[1729423216239,0.17844187,68408.0,68407.0,0.30629414]
[1729423239001,0.08394187,68408.0,68407.0,0.30629414]
[1729423248780,0.00491487,68408.0,68407.0,0.30629414]
[1729423256243,0.00491487,68408.0,68407.0,0.45412392]
[1729423256449,0.00491487,68408.0,68407.0,0.30629414]
[1729423259531,0.00491487,68408.0,68407.0,0.45412392]
[1729423259726,0.00491487,68408.0,68407.0,0.30629414]
[1729423260357,0.00491487,68408.0,68407.0,0.45412392]
[1729423260776,0.00491487,68408.0,68407.0,0.30629414]
[1729423263444,0.00491487,68408.0,68407.0,0.45417398]
[1729423264709,0.00491487,68408.0,68407.0,0.30629414]
[1729423264923,0.000827,68408.0,68407.0,0.45417398]
[1729423265313,0.00569364,68408.0,68407.0,0.45417398]
[1729423265527,0.000827,68408.0,68407.0,0.45417398]
[1729423265973,0.00569364,68408.0,68407.0,0.45417398]
[1729423266429,0.00569364,68408.0,68407.0,0.30629414]
[1729423266863,0.00569364,68408.0,68407.0,0.45417398]
[1729423267093,0.00569364,68408.0,68407.0,0.30629414]
[1729423267355,0.00569364,68408.0,68407.0,0.45417398]
[1729423268032,0.00569364,68408.0,68407.0,0.30629414]
[1729423268706,0.00569364,68408.0,68407.0,0.45417398]
[1729423268933,0.00569364,68408.0,68407.0,0.30629414]
[1729423269394,0.00569364,68408.0,68407.0,0.45417398]
[1729423270086,0.00569364,68408.0,68407.0,0.30629414]
[1729423270905,0.00569364,68408.0,68407.0,0.45417398]
[1729423271182,0.00569364,68408.0,68407.0,0.30629414]
[1729423276187,0.00569364,68408.0,68407.0,0.45417159]
[1729423276842,0.00569364,68408.0,68407.0,0.30629414]
[1729423279191,0.00569364,68408.0,68407.0,0.45416691]
[1729423279611,0.00569364,68408.0,68407.0,0.30629414]
[1729423280460,0.00569364,68408.0,68407.0,0.45416691]
[1729423280665,0.00569364,68408.0,68407.0,0.30629414]
[1729423286965,0.00569364,68408.0,68407.0,0.45417578]
[1729423289071,0.00569364,68408.0,68407.0,0.30629414]
[1729423291367,0.00569364,68408.0,68407.0,0.45417578]
[1729423291577,0.00569364,68408.0,68407.0,0.30629414]
[1729423291781,0.00569364,68408.0,68407.0,0.45417578]
[1729423293231,0.00569364,68408.0,68407.0,0.15733499]
[1729423321135,0.00569364,68408.0,68407.0,0.05733499]
[1729423321361,0.00569364,68408.0,68407.0,0.15733499]
[1729423326103,0.00569364,68408.0,68407.0,0.05733499]
[1729423326304,0.00569364,68408.0,68407.0,0.15733499]
[1729423341868,0.00569364,68408.0,68407.0,0.30518881]
[1729423342404,0.00569364,68408.0,68407.0,0.15733499]
[1729423345319,0.0078861,68408.0,68407.0,0.15733499]
[1729423345746,0.00569364,68408.0,68407.0,0.15733499]
[1729423350996,0.00569364,68408.0,68407.0,0.05733499]
[1729423351449,0.00569364,68408.0,68407.0,0.15733499]
[1729423364730,0.00569364,68408.0,68407.0,0.05733499]
[1729423369095,0.00881229,68408.0,68407.0,0.05733499]
[1729423369936,0.00569364,68408.0,68407.0,0.05733499]
[1729423370157,0.00881229,68408.0,68407.0,0.05733499]
[1729423372632,0.00569364,68408.0,68407.0,0.05733499]
[1729423372837,0.00881229,68408.0,68407.0,0.05733499]
[1729423388289,0.00569364,68408.0,68407.0,0.05733499]
[1729423388491,0.00881229,68408.0,68407.0,0.05733499]
[1729423392226,0.00569364,68408.0,68407.0,0.05733499]
[1729423392486,0.00881229,68408.0,68407.0,0.15733499]
[1729423392721,0.00394565,68408.0,68407.0,0.15733499]
[1729423393656,0.00394565,68408.0,68407.0,0.05733499]
[1729423400448,0.00945588,68408.0,68407.0,0.05733499]
[1729423400654,0.00394565,68408.0,68407.0,0.05733499]
[1729423401505,0.00945588,68408.0,68407.0,0.05733499]
[1729423401717,0.00394565,68408.0,68407.0,0.05733499]
[1729423401932,0.00945163,68408.0,68407.0,0.05733499]
[1729423402142,0.00394565,68408.0,68407.0,0.05733499]
[1729423402342,0.00944799,68408.0,68407.0,0.05733499]
[1729423402546,0.00394565,68408.0,68407.0,0.05733499]
[1729423402727,0.00944799,68408.0,68407.0,0.05733499]
[1729423402941,0.00394565,68408.0,68407.0,0.05733499]
[1729423403089,0.00944435,68408.0,68407.0,0.05733499]
[1729423423102,0.00394565,68408.0,68407.0,0.05733499]
[1729423442726,0.00151124,68408.0,68407.0,0.05733499]
[1729423447239,0.00151124,68408.0,68407.0,0.25063499]
[1729423447451,0.00233824,68408.0,68407.0,0.25063499]
[1729423452411,0.00233824,68408.0,68407.0,0.05733499]
[1729423454529,0.000827,68408.0,68407.0,0.05733499]
[1729423454797,0.00233824,68408.0,68407.0,0.05733499]
[1729423457619,0.000827,68408.0,68407.0,0.05733499]
[1729423457768,0.00233824,68408.0,68407.0,0.05733499]
[1729423461935,0.000827,68408.0,68407.0,0.05733499]
[1729423462140,0.00233824,68408.0,68407.0,0.05733499]
[1729423478698,0.00762144,68408.0,68407.0,0.05733499]
[1729423478940,0.00233824,68408.0,68407.0,0.05733499]
[1729423479346,0.00765785,68408.0,68407.0,0.05733499]
[1729423486382,0.00233824,68408.0,68407.0,0.05733499]
[1729423576494,0.00233824,68408.0,68407.0,0.25433499]
[1729423585359,0.00233824,68408.0,68407.0,0.40329414]
[1729423593946,0.00233824,68408.0,68407.0,0.30629414]
[1729423595846,0.00783193,68408.0,68407.0,0.30629414]
[1729423596051,0.00233824,68408.0,68407.0,0.30629414]
[1729423596261,0.00783193,68408.0,68407.0,0.30629414]
[1729423596471,0.00233824,68408.0,68407.0,0.30629414]
[1729423596676,0.00783193,68408.0,68407.0,0.30629414]
[1729423596882,0.00233824,68408.0,68407.0,0.30629414]
[1729423597087,0.00783193,68408.0,68407.0,0.30629414]
[1729423597287,0.00233824,68408.0,68407.0,0.30629414]
[1729423597922,0.00783193,68408.0,68407.0,0.30629414]
[1729423598137,0.00233824,68408.0,68407.0,0.30629414]
[1729423598369,0.00783193,68408.0,68407.0,0.30629414]
[1729423598594,0.00233824,68408.0,68407.0,0.30629414]
[1729423598798,0.00783193,68408.0,68407.0,0.30629414]
[1729423599020,0.00233824,68408.0,68407.0,0.30629414]
[1729423599226,0.00786247,68408.0,68407.0,0.30629414]
[1729423599437,0.00233824,68408.0,68407.0,0.30629414]
[1729423599653,0.0078647,68408.0,68407.0,0.30629414]
[1729423599899,0.00233824,68408.0,68407.0,0.30629414]
[1729423600120,0.0078647,68408.0,68407.0,0.30629414]
[1729423600326,0.00233824,68408.0,68407.0,0.30629414]
[1729423600534,0.00804171,68408.0,68407.0,0.30629414]
[1729423600759,0.00233824,68408.0,68407.0,0.30629414]
[1729423600970,0.00804171,68408.0,68407.0,0.30629414]
[1729423601187,0.00233824,68408.0,68407.0,0.30629414]
[1729423601428,0.00804171,68408.0,68407.0,0.30629414]
[1729423601633,0.00233824,68408.0,68407.0,0.30629414]
[1729423601840,0.00804171,68408.0,68407.0,0.30629414]
[1729423602049,0.00233824,68408.0,68407.0,0.30629414]
[1729423602282,0.00800894,68408.0,68407.0,0.30629414]
[1729423602508,0.00233824,68408.0,68407.0,0.30629414]
[1729423602968,0.00800894,68408.0,68407.0,0.30629414]
[1729423603196,0.00233824,68408.0,68407.0,0.30629414]
[1729423603436,0.00800894,68408.0,68407.0,0.30629414]
[1729423603652,0.00233824,68408.0,68407.0,0.30629414]
[1729423603911,0.0080369,68408.0,68407.0,0.30629414]
[1729423604130,0.00233824,68408.0,68407.0,0.30629414]
[1729423604389,0.00804171,68408.0,68407.0,0.30629414]
[1729423604649,0.00233824,68408.0,68407.0,0.30629414]
[1729423604881,0.00804171,68408.0,68407.0,0.30629414]
[1729423605161,0.00233824,68408.0,68407.0,0.30629414]
[1729423605403,0.00804171,68408.0,68407.0,0.30629414]
[1729423605641,0.00233824,68408.0,68407.0,0.30629414]
[1729423605868,0.00804171,68408.0,68407.0,0.30629414]
[1729423606158,0.00233824,68408.0,68407.0,0.30629414]
[1729423606391,0.00800419,68408.0,68407.0,0.30629414]
[1729423606629,0.00233824,68408.0,68407.0,0.30629414]
[1729423606844,0.00800815,68408.0,68407.0,0.30629414]
[1729423607116,0.00233824,68408.0,68407.0,0.30629414]
[1729423607331,0.00801607,68408.0,68407.0,0.30629414]
[1729423607588,0.00233824,68408.0,68407.0,0.30629414]
[1729423607831,0.00801607,68408.0,68407.0,0.30629414]
[1729423608071,0.00233824,68408.0,68407.0,0.30629414]
[1729423608314,0.00802399,68408.0,68407.0,0.30629414]
[1729423608549,0.00233824,68408.0,68407.0,0.30629414]
[1729423608779,0.00802399,68408.0,68407.0,0.30629414]
[1729423609012,0.00233824,68408.0,68407.0,0.30629414]
[1729423609241,0.00800791,68408.0,68407.0,0.30629414]
[1729423609478,0.00233824,68408.0,68407.0,0.30629414]
[1729423609698,0.00800791,68408.0,68407.0,0.30629414]
[1729423609971,0.00233824,68408.0,68407.0,0.30629414]
[1729423610198,0.00800791,68408.0,68407.0,0.30629414]
[1729423610430,0.00233824,68408.0,68407.0,0.30629414]
[1729423610626,0.00800791,68408.0,68407.0,0.30629414]
[1729423610933,0.00233824,68408.0,68407.0,0.30629414]
[1729423611170,0.00800791,68408.0,68407.0,0.30629414]
[1729423611404,0.00233824,68408.0,68407.0,0.30629414]
[1729423611633,0.00800791,68408.0,68407.0,0.30629414]
[1729423611864,0.00233824,68408.0,68407.0,0.30629414]
[1729423612094,0.00800791,68408.0,68407.0,0.30629414]
[1729423612331,0.00233824,68408.0,68407.0,0.30629414]
[1729423612625,0.00803356,68408.0,68407.0,0.30629414]
[1729423612839,0.00233824,68408.0,68407.0,0.30629414]
[1729423613092,0.00803752,68408.0,68407.0,0.30629414]
[1729423613315,0.00233824,68408.0,68407.0,0.30629414]
[1729423613773,0.00804068,68408.0,68407.0,0.30629414]
[1729423614031,0.00233824,68408.0,68407.0,0.30629414]
[1729423614264,0.00804068,68408.0,68407.0,0.30629414]
[1729423614483,0.00233824,68408.0,68407.0,0.30629414]
[1729423614707,0.00804068,68408.0,68407.0,0.30629414]
[1729423614936,0.00233824,68408.0,68407.0,0.30629414]
[1729423615175,0.00804068,68408.0,68407.0,0.30629414]
[1729423615409,0.00233824,68408.0,68407.0,0.30629414]
[1729423615633,0.00800791,68408.0,68407.0,0.30629414]
[1729423615864,0.00233824,68408.0,68407.0,0.30629414]
[1729423616129,0.00800791,68408.0,68407.0,0.30629414]
[1729423630511,0.00800791,68408.0,68407.0,0.30829414]
[1729423631004,0.00800791,68408.0,68407.0,0.30629414]
[1729423632757,0.00800791,68408.0,68407.0,0.30829414]
[1729423641360,0.00649667,68408.0,68407.0,0.30829414]
[1729423641593,0.00800791,68408.0,68407.0,0.30829414]
[1729423642195,0.00649667,68408.0,68407.0,0.30829414]
[1729423642404,0.00800791,68408.0,68407.0,0.30829414]
[1729423643222,0.00649667,68408.0,68407.0,0.30829414]
[1729423643457,0.00800791,68408.0,68407.0,0.30829414]
[1729423651037,0.00649667,68408.0,68407.0,0.30829414]
[1729423651251,0.00800791,68408.0,68407.0,0.30829414]
[1729423652366,0.00649667,68408.0,68407.0,0.30829414]
[1729423652577,0.00800791,68408.0,68407.0,0.30829414]
[1729423662703,0.00800791,68408.0,68407.0,0.30629414]
[1729423663100,0.00800791,68408.0,68407.0,0.30829414]
[1729423664996,0.00800791,68408.0,68407.0,0.30629414]
[1729423666292,0.00800791,68408.0,68407.0,0.30829414]
[1729423669472,0.00800791,68408.0,68407.0,0.30629414]
[1729423670130,0.00800791,68408.0,68407.0,0.45402604]
[1729423670974,0.00800791,68408.0,68407.0,0.30629414]
[1729423671407,0.00800791,68408.0,68407.0,0.30829414]
[1729423672512,0.00800791,68408.0,68407.0,0.30629414]
[1729423678431,0.00800791,68408.0,68407.0,0.30829414]
[1729423679073,0.00800791,68408.0,68407.0,0.30629414]
[1729423679513,0.00800791,68408.0,68407.0,0.30829414]
[1729423680202,0.00800791,68408.0,68407.0,0.30629414]
[1729423680430,0.00800791,68408.0,68407.0,0.45402604]
[1729423681354,0.00800791,68408.0,68407.0,0.45602604]
[1729423681788,0.00800791,68408.0,68407.0,0.45402604]
[1729423681990,0.00800791,68408.0,68407.0,0.45602604]
[1729423690028,0.00800791,68408.0,68407.0,0.30829414]
[1729423690240,0.00800791,68408.0,68407.0,0.45603903]
[1729423691958,0.00649667,68408.0,68407.0,0.30829414]
[1729423692407,0.00800791,68408.0,68407.0,0.30829414]
[1729423693314,0.00800791,68408.0,68407.0,0.45603903]
[1729423694193,0.00800791,68408.0,68407.0,0.30829414]
[1729423694611,0.00800791,68408.0,68407.0,0.45603903]
[1729423694821,0.00649667,68408.0,68407.0,0.45603903]
[1729423695034,0.00800791,68408.0,68407.0,0.45603903]
[1729423695245,0.00800791,68408.0,68407.0,0.30829414]
[1729423695740,0.00800791,68408.0,68407.0,0.45603741]
[1729423696863,0.00800791,68408.0,68407.0,0.30829414]
[1729423697537,0.00800791,68408.0,68407.0,0.45603741]
[1729423699627,0.00649667,68408.0,68407.0,0.45603741]
[1729423699868,0.00800791,68408.0,68407.0,0.45603741]
[1729423701286,0.00800791,68408.0,68407.0,0.45602562]
[1729423703182,0.00649667,68408.0,68407.0,0.45602562]
[1729423703410,0.00800791,68408.0,68407.0,0.45602562]
[1729423703650,0.00800791,68408.0,68407.0,0.30829414]
[1729423706831,0.00649667,68408.0,68407.0,0.30829414]
[1729423707059,0.00800791,68408.0,68407.0,0.30829414]
[1729423708754,0.00800791,68408.0,68407.0,0.45600884]
[1729423710049,0.00800791,68408.0,68407.0,0.30829414]
[1729423710725,0.00800791,68408.0,68407.0,0.45600884]
[1729423711824,0.00800791,68408.0,68407.0,0.30829414]
[1729423712057,0.00800791,68408.0,68407.0,0.45600884]
[1729423712276,0.00800791,68408.0,68407.0,0.30829414]
[1729423712913,0.00800791,68408.0,68407.0,0.45600884]
[1729423713116,0.00800791,68408.0,68407.0,0.30829414]
[1729423713328,0.00800791,68408.0,68407.0,0.45600884]
[1729423713530,0.00800791,68408.0,68407.0,0.30829414]
[1729423714164,0.00800791,68408.0,68407.0,0.30629414]
[1729423714374,0.00800791,68408.0,68407.0,0.33553414]
[1729423714634,0.00800791,68408.0,68407.0,0.30629414]
[1729423715267,0.00800791,68408.0,68407.0,0.45401295]
[1729423716154,0.00800791,68408.0,68407.0,0.45601295]
[1729423716614,0.00800791,68408.0,68407.0,0.30829414]
[1729423718536,0.00800791,68408.0,68407.0,0.30629414]
[1729423718963,0.00649667,68408.0,68407.0,0.30629414]
[1729423719200,0.00800791,68408.0,68407.0,0.30829414]
[1729423721115,0.00800791,68408.0,68407.0,0.45601373]
[1729423721322,0.00800791,68408.0,68407.0,0.30829414]
[1729423721957,0.00800791,68408.0,68407.0,0.45601373]
[1729423722391,0.00800791,68408.0,68407.0,0.30829414]
[1729423723058,0.00800791,68408.0,68407.0,0.45401373]
[1729423723286,0.00800791,68408.0,68407.0,0.30629414]
[1729423723926,0.00800791,68408.0,68407.0,0.45401373]
[1729423724341,0.00800791,68408.0,68407.0,0.30629414]
[1729423734976,0.00649667,68408.0,68407.0,0.30629414]
[1729423735190,0.00800791,68408.0,68407.0,0.30629414]
[1729423735427,0.00649667,68408.0,68407.0,0.30629414]
[1729423735640,0.00800791,68408.0,68407.0,0.30629414]
[1729423737949,0.00649667,68408.0,68407.0,0.30629414]
[1729423738155,0.00800791,68408.0,68407.0,0.30629414]
[1729423740792,0.00649667,68408.0,68407.0,0.30629414]
[1729423740989,0.00800791,68408.0,68407.0,0.30629414]
[1729423746069,0.00649667,68408.0,68407.0,0.30629414]
[1729423746269,0.00800791,68408.0,68407.0,0.30629414]
[1729423782761,0.00233824,68408.0,68407.0,0.30629414]
[1729423782967,0.00795719,68408.0,68407.0,0.30629414]
[1729423803005,0.00795719,68408.0,68407.0,0.05233499]
[1729423803211,0.08635719,68408.0,68407.0,0.05233499]
[1729423804433,0.08635719,68408.0,68407.0,0.34618287]
[1729423805050,0.08635719,68408.0,68407.0,0.34618335]
[1729423806398,0.08635719,68408.0,68407.0,0.15233499]
[1729423807347,0.08635719,68408.0,68407.0,0.05233499]
[1729423809438,0.08635719,68408.0,68407.0,0.006654]
[1729423819582,0.08635719,68408.0,68407.0,1.006654]
[1729423819809,0.08635719,68408.0,68407.0,1.106654]
[1729423821687,0.08635719,68408.0,68407.0,1.23779895]
[1729423822131,0.08635719,68408.0,68407.0,1.006654]
[1729423822541,0.17865719,68408.0,68407.0,1.006654]
[1729423827040,0.17869719,68408.0,68407.0,1.006654]
[1729423836050,0.17869719,68408.0,68407.0,1.001654]
[1729423836277,0.17869719,68408.0,68407.0,1.006654]
[1729423837695,0.17869719,68408.0,68407.0,1.05224538]
[1729423837910,0.08639719,68408.0,68407.0,1.05224538]
[1729423840381,0.08639719,68408.0,68407.0,1.18341937]
[1729423843803,0.08639719,68408.0,68407.0,1.18347227]
[1729423844211,0.08639719,68408.0,68407.0,1.05224538]
[1729423844840,0.00799719,68408.0,68407.0,1.05224538]
[1729423858091,0.00799719,68408.0,68407.0,0.99618102]
[1729423859964,0.00799719,68408.0,68407.0,1.04179738]
[1729423860180,0.00799719,68408.0,68407.0,0.99618102]
[1729423860407,0.00799719,68408.0,68407.0,1.04179959]
[1729423861403,0.00799719,68408.0,68407.0,1.04180033]
[1729423861633,0.00799719,68408.0,68407.0,0.99618102]
[1729423866713,0.00799719,68408.0,68407.0,1.04179615]
[1729423867785,0.00799719,68408.0,68407.0,0.99618102]
[1729423867984,0.00237824,68408.0,68407.0,1.04179679]
[1729423868240,0.00237824,68408.0,68407.0,0.99618102]
[1729423869132,0.00237824,68408.0,68407.0,1.04179698]
[1729423869337,0.00237824,68408.0,68407.0,0.99783502]
[1729423869996,0.00237824,68408.0,68407.0,1.04345134]
[1729423871471,0.00237824,68408.0,68407.0,0.99783502]
[1729423871678,0.00237824,68408.0,68407.0,1.04345321]
[1729423872098,0.00237824,68408.0,68407.0,0.99783502]
[1729423872523,0.00237824,68408.0,68407.0,1.04345357]
[1729423873353,0.00237824,68408.0,68407.0,0.99783502]
[1729423873566,0.00237824,68408.0,68407.0,1.04346092]
[1729423876308,0.00237824,68408.0,68407.0,0.99783502]
[1729423876522,0.00237824,68408.0,68407.0,1.04346245]
[1729423882451,0.00237824,68408.0,68407.0,0.99783502]
[1729423882863,0.00237824,68408.0,68407.0,1.04346648]
[1729423884831,0.00237824,68408.0,68407.0,0.99783502]
[1729423886839,0.00237824,68408.0,68407.0,1.04346586]
[1729423887823,0.00237824,68408.0,68407.0,0.99783502]
[1729423888235,0.00237824,68408.0,68407.0,1.04346592]
[1729423888868,0.00237824,68408.0,68407.0,0.99783502]
[1729423889441,0.00237824,68408.0,68407.0,1.04346608]
[1729423890168,0.00237824,68408.0,68407.0,0.99783502]
[1729423891717,0.00237824,68408.0,68407.0,1.04346566]
[1729423891918,0.00237824,68408.0,68407.0,0.99783502]
[1729423894083,0.00237824,68408.0,68407.0,1.04346641]
[1729423894642,0.00237824,68408.0,68407.0,0.99783502]
[1729423906058,0.00237824,68408.0,68407.0,1.04346553]
[1729423912892,0.00237824,68408.0,68407.0,0.99783502]
[1729423913101,0.00237824,68408.0,68407.0,1.04346575]
[1729423913511,0.00237824,68408.0,68407.0,0.99783502]
[1729423913660,0.00237824,68408.0,68407.0,1.04346581]
[1729423914470,0.00237824,68408.0,68407.0,0.99783502]
[1729423914915,0.00237824,68408.0,68407.0,1.04346561]
[1729423915257,0.00237824,68408.0,68407.0,0.99783502]
[1729423915462,0.00237824,68408.0,68407.0,1.04346597]
[1729423915869,0.00237824,68408.0,68407.0,0.99783502]
[1729423916318,0.00237824,68408.0,68407.0,1.0434659]
[1729423917133,0.00237824,68408.0,68407.0,1.04346604]
[1729423917749,0.00237824,68408.0,68407.0,0.99783502]
[1729423917992,0.21907885,68412.0,68407.0,0.99783502]
[1729423917993,0.21907885,68412.0,68410.0,0.99679476]
[1729423918186,0.21907885,68412.0,68410.0,1.12821101]
[1729423918825,0.000827,68413.0,68410.0,1.12821101]
[1729423919045,0.000827,68413.0,68410.0,0.99679476]
[1729423919436,0.000827,68413.0,68410.0,1.12821101]
[1729423921195,0.000827,68413.0,68410.0,1.12821209]
[1729423923506,0.000827,68413.0,68411.0,0.13141733]
[1729423923720,0.000827,68413.0,68410.0,1.12821209]
[1729423925985,0.000827,68413.0,68410.0,0.99679476]
[1729423927371,0.000827,68413.0,68410.0,1.12822149]
[1729423930813,0.000827,68413.0,68410.0,0.13142673]
[1729423931270,0.00530453,68412.0,68410.0,0.13142673]
[1729423931521,0.00530453,68412.0,68409.0,0.13142673]
[1729423931762,0.00530453,68412.0,68410.0,0.13308073]
[1729423932266,0.00530453,68412.0,68410.0,0.001654]
[1729423932481,0.00530453,68412.0,68410.0,0.13308073]
[1729423932681,0.00530453,68412.0,68410.0,0.001654]
[1729423932930,0.00530453,68412.0,68410.0,0.13308073]
[1729423933889,0.00530453,68412.0,68410.0,0.13306807]
[1729423938316,0.00530453,68412.0,68411.0,0.13141407]
[1729423940918,0.00530453,68412.0,68410.0,0.001654]
[1729423940919,0.00530453,68412.0,68410.0,0.13306807]
[1729423941324,0.00530453,68412.0,68410.0,0.001654]
[1729423941524,0.00530453,68412.0,68410.0,0.13306807]
[1729423942780,0.00530453,68412.0,68410.0,0.001654]
[1729423943010,0.00530453,68412.0,68410.0,0.13306807]
[1729423943385,0.00530453,68412.0,68410.0,0.001654]
[1729423943594,0.00530453,68412.0,68410.0,0.13306807]
[1729423945467,0.00613153,68412.0,68410.0,0.13306807]
[1729423945672,0.00613153,68412.0,68410.0,0.13307333]
[1729423946959,0.00617153,68412.0,68410.0,0.13307333]
[1729423947164,0.00617153,68412.0,68410.0,0.001654]
[1729423947586,0.00617153,68412.0,68410.0,0.13307333]
[1729423950618,0.00617153,68412.0,68410.0,0.13308031]
[1729423950845,0.00617153,68412.0,68411.0,1.0]
[1729423951328,0.000867,68412.0,68411.0,1.0]
[1729423962193,0.08691923,68415.0,68414.0,0.997479]
[1729423969175,0.09225065,68415.0,68414.0,0.997479]
[1729423970435,0.09225065,68415.0,68414.0,0.999133]
[1729423972610,0.08725065,68415.0,68414.0,0.999133]
[1729423973024,0.09225065,68415.0,68414.0,0.999133]
[1729423974088,0.01335065,68415.0,68414.0,0.999133]
[1729423975841,0.01115842,68415.0,68414.0,0.999133]
[1729423980928,0.01115842,68415.0,68414.0,0.001654]
[1729423981130,0.01115842,68415.0,68414.0,0.11118313]
[1729423981345,0.01115842,68415.0,68414.0,0.001654]
[1729423982607,0.01115842,68415.0,68414.0,0.11117963]
[1729423982816,0.00615842,68415.0,68414.0,0.001654]
[1729423983506,0.00615842,68415.0,68414.0,0.11117892]
[1729423983740,0.00615842,68415.0,68414.0,0.001654]
[1729423985115,0.00615842,68415.0,68414.0,0.11117414]
[1729423985330,0.00615842,68415.0,68414.0,0.001654]
[1729423985543,0.00615842,68415.0,68414.0,0.11117261]
[1729423985963,0.00615842,68415.0,68414.0,0.001654]
[1729423988698,0.000827,68415.0,68414.0,0.001654]
[1729423992993,0.000827,68415.0,68414.0,0.1111748]
[1729423993226,0.000827,68415.0,68414.0,0.001654]
[1729424077801,0.000827,68415.0,68414.0,0.10950957]
[1729424078238,0.000827,68415.0,68411.0,0.899133]
[1729424078440,0.000827,68415.0,68414.0,0.10950772]
[1729424079585,0.000827,68415.0,68414.0,0.10951035]
[1729424081165,0.000827,68415.0,68414.0,0.10950867]
[1729424084496,0.000827,68415.0,68411.0,0.899133]
[1729424084694,0.000827,68415.0,68414.0,0.10951285]
[1729424086623,0.000827,68415.0,68411.0,0.899133]
[1729424086836,0.000827,68415.0,68414.0,0.10951096]
[1729424087383,0.000827,68415.0,68411.0,0.899133]
[1729424088263,0.000827,68415.0,68411.0,1.0305434]
[1729424088913,0.000827,68415.0,68411.0,0.899133]
[1729424089135,0.000827,68415.0,68411.0,1.0305434]
[1729424089599,0.000827,68415.0,68411.0,0.900787]
[1729424091913,0.21907885,68414.0,68413.0,0.005]
[1729424092173,0.081,68413.0,68411.0,1.01031709]
[1729424092408,0.22995915,68413.0,68412.0,0.04380883]
[1729424092654,0.00532951,68412.0,68411.0,0.94459583]
[1729424092897,0.09757372,68412.0,68411.0,0.94459583]
[1729424093136,0.35075874,68412.0,68411.0,0.900787]
[1729424096010,0.42675874,68412.0,68411.0,0.900787]
[1729424108044,0.43175874,68412.0,68411.0,0.900787]
[1729424108246,0.48056379,68412.0,68411.0,0.900787]
[1729424108681,0.48060379,68412.0,68411.0,0.900787]
[1729424108900,0.50360379,68412.0,68411.0,0.900787]
[1729424113101,0.50560379,68412.0,68411.0,0.900787]
[1729424113538,0.50643079,68412.0,68411.0,0.900787]
[1729424131774,0.51097698,68412.0,68411.0,0.900787]
[1729424139892,0.46017193,68412.0,68411.0,0.900787]
[1729424140116,0.29027193,68412.0,68411.0,0.900787]
[1729424143100,0.38934933,68412.0,68411.0,0.900787]
[1729424150295,0.43315973,68412.0,68411.0,0.900787]
[1729424150511,0.41028233,68412.0,68411.0,0.900787]
[1729424150742,0.44878926,68412.0,68411.0,0.900787]
[1729424150929,0.49260749,68412.0,68411.0,0.900787]
[1729424151621,0.49261193,68412.0,68411.0,0.900787]
[1729424151840,0.49261158,68412.0,68411.0,0.900787]
[1729424152262,0.44878926,68412.0,68411.0,0.900787]
[1729424152925,0.49261665,68412.0,68411.0,0.900787]
[1729424153161,0.44878926,68412.0,68411.0,0.900787]
[1729424153665,0.51452969,68412.0,68411.0,0.900787]
[1729424154562,0.44878926,68412.0,68411.0,0.900787]
[1729424154800,0.51452969,68412.0,68411.0,0.900787]
[1729424155021,0.44878926,68412.0,68411.0,0.900787]
[1729424155249,0.51452969,68412.0,68411.0,0.900787]
[1729424155493,0.44878926,68412.0,68411.0,0.900787]
[1729424155721,0.45078926,68412.0,68411.0,0.900787]
[1729424155949,0.51652969,68412.0,68411.0,0.900787]
[1729424156407,0.63704316,68412.0,68411.0,0.900787]
[1729424156629,0.54938926,68412.0,68411.0,0.900787]
[1729424159882,0.63707428,68412.0,68411.0,0.900787]
[1729424160564,0.54938926,68412.0,68411.0,0.900787]
[1729424160781,0.63707642,68412.0,68411.0,0.900787]
[1729424161515,0.63207642,68412.0,68411.0,0.900787]
[1729424161958,0.54438926,68412.0,68411.0,0.900787]
[1729424163757,0.63207642,68412.0,68411.0,0.900787]
[1729424164412,0.63207768,68412.0,68411.0,0.900787]
[1729424164853,1.80018926,68412.0,68411.0,0.900787]
[1729424165124,1.88787768,68412.0,68411.0,0.900787]
[1729424165347,1.62338926,68412.0,68411.0,0.900787]
[1729424166735,1.66723005,68412.0,68411.0,0.900787]
[1729424167388,1.62338926,68412.0,68411.0,0.900787]
[1729424168496,1.66722898,68412.0,68411.0,0.900787]
[1729424168714,1.66942179,68412.0,68411.0,0.900787]
[1729424169675,1.62558207,68412.0,68411.0,0.900787]